[Event "26th Womens ECCC 2022"]
[Site "Mayrhofen"]
[Date "2022.10.05"]
[Round "3.9"]
[White "Kashlinskaya, Alina"]
[Black "Muzychuk, Mariya"]
[Result "1-0"]
[ECO "D12"]
[WhiteElo "2482"]
[BlackElo "2527"]
[Annotator "TA"]
[PlyCount "99"]
[EventDate "2022.10.03"]
[EventType "team-tourn"]
[EventCountry "AUT"]
[SourceTitle "playchess.com"]
[Source "ChessBase"]
[SourceQuality "1"]
[TimeControl "40/5400+30:1800+30"]

{[%evp 11,99,21,30,18,22,0,0,-6,-10,-16,-12,-19,-8,-29,-23,-27,-23,-18,8,10,36,37,26,24,27,20,75,76,75,59,69,60,92,94,104,92,104,85,115,110,119,108,110,112,293,302,285,343,331,293,348,285,285,289,425,425,442,353,353,338,447,417,552,530,516,270,262,248,486,495,545,485,932,321,329,313,421,292,522,513,786,580,29973,29974,29974,29975,29975,29976,29973,29971]} 1. d4 {[%emt 0:00:03]} d5 {[%emt 0:00:03]} 2. c4 {[%emt 0:00:06]} c6 {[%emt 0:00:03]} 3. Nf3 {[%emt 0:00:06]} Nf6 {[%emt 0:00:08]} 4. e3 {[%emt 0:00:05]} Bf5 {[%emt 0:01:48]} 5. Nc3 {[%emt 0:00:07]} e6 {[%emt 0:00:04]} 6. Nh4 {[%emt 0:00:05]} Bg6 {[%emt 0:00:18]} 7. Qb3 {[%emt 0:02:39] D12: Slav Defence: 3 Nf3 Nf6 4 e3 Bf5.} Qc7 {[%emt 0:05:49] 7...Qc7 is better than 7...Qb6.} 8. Bd2 {[%emt 0:01:39]} Ne4 {[%emt 0:05:06] has lost popularity (8...Nbd7).} 9. Nxe4 {[%emt 0:08:09] The position is equal.} Bxe4 {[%emt 0:00:13]} 10. f3 {[%emt 0:13:24]} (10. cxd5 {seems wilder.} Be7 11. d6 Bxd6 12. Bd3) 10... dxc4 $1 {[%emt 0:01:33]} 11. Bxc4 {[%emt 0:15:33]} Bd5 {[%emt 0:00:43]} 12. e4 {[%emt 0:02:48]} Bxc4 {[%emt 0:03:03]} 13. Qxc4 {[%emt 0:00:06]} Be7 {[%emt 0:04:58]} 14. g3 {[%emt 0:00:10] [#]} Bxh4 $146 {[%emt 0:01:05]} ({Predecessor:} 14... Nd7 15. Ng2 Rd8 16. Be3 Qa5+ 17. Bd2 Qc7 18. Be3 Qa5+ 19. Bd2 Qc7 20. Be3 {½-½ (20) Almeida Quintana,O (2452)-Dominguez Perez,L (2658) Santa Clara 2005}) 15. gxh4 {[%emt 0:00:04]} Nd7 {[%emt 0:00:25]} 16. O-O-O {[%emt 0:01:05]} O-O-O {[%emt 0:03:20]} 17. Kb1 {[%emt 0:01:42]} Kb8 {[%emt 0:07:22]} 18. Be1 {[%emt 0:01:13] And now Bg3 would win.} Nb6 {[%emt 0:15:55]} (18... Ka8 $11 {remains equal.}) 19. Qc5 $16 {[%emt 0:03:26] Black must now prevent Bg3.} Ka8 {[%emt 0:11:25]} 20. Bg3 {[%emt 0:01:21]} Qd7 {[%emt 0:00:14]} 21. Rd3 $1 {[%emt 0:00:56][%cal Oc5b6]} Nc8 {[%emt 0:00:29]} 22. Qe5 {[%emt 0:06:22][%csl Gg3][%cal Re5b8] White has more active pieces.} Nd6 {[%emt 0:07:41]} 23. Qxg7 {[%emt 0:00:55]} f5 {[%emt 0:00:31]} 24. Qe5 {[%emt 0:05:43]} fxe4 {[%emt 0:05:12]} 25. fxe4 {[%emt 0:00:02]} Rhf8 {[%emt 0:00:09]} 26. Rc1 {[%emt 0:03:04]} Qf7 {[%emt 0:05:42]} 27. h5 {[%emt 0:00:52]} Qg8 $2 {[%emt 0:03:12] [#] A mistake that costs the game.} (27... Rd7 $16 {might work better.} 28. a4 Qe8) 28. Bh4 $1 $18 {[%emt 0:02:04]} Rd7 {[%emt 0:03:19]} 29. Rg3 {[%emt 0:00:24] Inhibits Qg4.} Qf7 {[%emt 0:01:27]} 30. h6 {[%emt 0:00:37] Rg7 is the strong threat.} Rg8 {[%emt 0:04:28] Prevents Rg7.} 31. Rg7 {[%emt 0:05:58]} Rxg7 {[%emt 0:00:15]} 32. hxg7 {[%emt 0:00:05]} ({Weaker is} 32. Qxg7 Qxg7 33. hxg7 Rxg7 $11) 32... Qxg7 {[%emt 0:05:51]} (32... Ne8 {was called for.} 33. Bg3 Nc7) 33. Qxe6 {[%emt 0:00:05]} a6 {[%emt 0:00:35]} 34. Bg3 {[%emt 0:09:42]} Qf7 {[%emt 0:01:48]} 35. d5 {[%emt 0:00:27]} cxd5 {[%emt 0:01:38]} 36. exd5 {[%emt 0:00:26]} Qf5+ {[%emt 0:01:38]} 37. Ka1 {[%emt 0:03:13]} Qg5 {[%emt 0:00:04][%cal Rg5c1]} 38. Re1 {[%emt 0:03:58]} Qd8 {[%emt 0:00:28]} 39. a3 {[%emt 0:04:39] Threatens to win with Rc1.} Nc4 $2 {[%emt 0:01:14]} (39... Nb5 40. d6 Nd4) 40. d6 {[%emt 0:03:07]} Na5 {[%emt 0:00:25]} 41. Rf1 {[%emt 0:06:59]} Qc8 {[%emt 0:08:36]} (41... Nc6 $142 42. Rf7 Rxf7 43. Qxf7 Nb8 44. Qxh7 Qf8) 42. Qd5 $2 {[%emt 0:07:59]} (42. Rf7 Nb3+ 43. Qxb3) 42... Nc6 {[%emt 0:01:33]} 43. Rf6 {[%emt 0:02:08]} Qe8 {[%emt 0:02:56]} 44. Qf3 {[%emt 0:02:07] Strongly threatening Rf8.} Rd8 $2 {[%emt 0:01:55]} (44... Qc8 {was necessary.} 45. Bf2 Nb8) 45. Rf7 {[%emt 0:00:39]} Na5 {[%emt 0:01:28]} (45... Qg8 $142 46. Rc7 Qc4) 46. Qd5 {[%emt 0:02:22]} Qe3 {[%emt 0:07:27]} 47. Qxa5 {[%emt 0:02:05] White mates.} Qc1+ {[%emt 0:01:25]} 48. Ka2 {[%emt 0:00:03]} Qc4+ {[%emt 0:02:53] [#]} 49. Kb1 $1 {[%emt 0:00:04]} Rc8 {[%emt 0:03:31]} 50. Rc7 {[%emt 0:02:16] Weighted Error Value: White=0.38/Black=0.49} ({Inferior is} 50. d7 Qe4+ 51. Ka2 Qe6+ 52. Kb1 Qe4+ 53. Ka2 Qe6+ 54. Kb1 Qe4+ $11) 1-0

[Event "26th Womens ECCC 2022"]
[Site "Mayrhofen"]
[Date "2022.10.05"]
[Round "3.10"]
[White "Unuk, Laura"]
[Black "Kiolbasa, Oliwia"]
[Result "1/2-1/2"]
[ECO "D37"]
[WhiteElo "2297"]
[BlackElo "2404"]
[Annotator "TA"]
[PlyCount "60"]
[EventDate "2022.10.03"]
[EventType "team-tourn"]
[EventCountry "AUT"]
[SourceTitle "playchess.com"]
[Source "ChessBase"]
[SourceQuality "1"]
[TimeControl "40/5400+30:1800+30"]

{[%evp 9,60,22,12,0,-3,0,22,29,29,20,33,26,28,31,22,22,23,23,22,28,33,36,39,31,27,22,25,18,20,20,28,22,21,27,29,27,30,14,18,0,29,16,18,18,18,18,18,0,0,0,0,0,0]} 1. d4 {[%emt 0:00:04]} Nf6 {[%emt 0:00:08]} 2. c4 {[%emt 0:00:48]} e6 {[%emt 0:00:10]} 3. Nf3 {[%emt 0:00:35]} d5 {[%emt 0:00:18]} 4. Nc3 {[%emt 0:00:21]} dxc4 {[%emt 0:01:41]} 5. e4 {[%emt 0:01:03]} Bb4 {[%emt 0:00:55]} 6. Bxc4 {[%emt 0:00:26] D24: Queen's Gambit Accepted: 3 Nf3 Nf6 4 Nc3.} Nxe4 {[%emt 0:01:38]} 7. O-O {[%emt 0:00:19]} Nf6 {[%emt 0:01:01]} 8. Qa4+ {[%emt 0:00:38]} Nc6 {[%emt 0:00:33]} 9. Ne5 {[%emt 0:00:41]} Rb8 {[%emt 0:04:41]} ({But not} 9... Bd7 10. Nxc6 Bxc3 11. Nxd8 $16) 10. d5 {[%emt 0:02:08]} Nxd5 {[%emt 0:34:15] White must now prevent ...0-0.} 11. Nxc6 {[%emt 0:16:07]} (11. Nxd5 {feels hotter.} exd5 12. Nxc6 bxc6 13. Qxc6+ Bd7 14. Qxd5 O-O 15. Bg5) 11... bxc6 {[%emt 0:02:04]} 12. Nxd5 {[%emt 0:03:58]} exd5 {[%emt 0:03:16]} 13. Qxc6+ {[%emt 0:00:18]} Qd7 {[%emt 0:05:15]} (13... Bd7 {looks sharper.} 14. Qxd5 O-O 15. b3 Bb5) 14. Qxd5 {[%emt 0:02:50] Strongly threatening Qe5+.} Qxd5 {[%emt 0:02:09]} 15. Bxd5 {[%emt 0:02:24]} Bb7 {[%emt 0:04:38]} 16. Bxb7 {[%emt 0:06:59]} Rxb7 {[%emt 0:00:51]} 17. Be3 {[%emt 0:00:46] [#]} Bd6 $146 {[%emt 0:03:07]} ({Predecessor:} 17... Kd7 18. Rac1 {½-½ (18) Drygalov,S (2500)-Afanasiev,N (2548) Cheliabinsk 2021}) 18. b3 {[%emt 0:05:26]} Kd7 {[%emt 0:05:01]} 19. Rfd1 {[%emt 0:01:43]} Re8 {[%emt 0:00:50]} 20. Rd5 {[%emt 0:03:10]} Re5 {[%emt 0:04:24]} 21. Rxe5 {[%emt 0:08:10]} Bxe5 $11 {[%emt 0:01:30][%mdl 4096] Endgame KRB-KRB} 22. Rd1+ {[%emt 0:00:07]} Ke6 {[%emt 0:04:39]} 23. Re1 {[%emt 0:07:00] White wants to play Bd4.} Kd5 {[%emt 0:02:43] Against Bd4} 24. Rd1+ {[%emt 0:02:54]} Ke6 {[%emt 0:00:08]} 25. Rc1 {[%emt 0:05:35]} Bd6 {[%emt 0:03:03] The position is equal.} 26. Rc4 {[%emt 0:02:53]} a5 {[%emt 0:02:07]} 27. Re4+ {[%emt 0:01:58]} Kd7 {[%emt 0:01:52]} 28. Kf1 {[%emt 0:02:04]} Rb4 {[%emt 0:02:42]} 29. Rd4 {[%emt 0:02:50]} Ke6 {[%emt 0:02:37]} 30. Ke2 {[%emt 0:00:44]} Be5 {[%emt 0:05:09] Weighted Error Value: White=0.03 (flawless) /Black=0.04 (flawless)} (30... Bxh2 $2 31. g3 $18) 1/2-1/2

[Event "26th Womens ECCC 2022"]
[Site "Mayrhofen"]
[Date "2022.10.05"]
[Round "3.11"]
[White "Antolak, Julia"]
[Black "Urh, Zala"]
[Result "1/2-1/2"]
[ECO "C89"]
[WhiteElo "2315"]
[BlackElo "2221"]
[Annotator "TA"]
[PlyCount "60"]
[EventDate "2022.10.03"]
[EventType "team-tourn"]
[EventCountry "AUT"]
[SourceTitle "playchess.com"]
[Source "ChessBase"]
[SourceQuality "1"]
[TimeControl "40/5400+30:1800+30"]

{[%evp 17,60,12,0,0,0,0,0,0,0,0,0,0,0,0,0,0,19,-18,-4,-4,0,0,0,0,0,0,0,-7,0,0,0,-7,0,-2,0,-12,-8,-17,0,-22,0,-9,0,-11,11]} 1. e4 {[%emt 0:00:03]} e5 {[%emt 0:00:04]} 2. Nf3 {[%emt 0:00:06]} Nc6 {[%emt 0:00:12]} 3. Bb5 {[%emt 0:00:06]} a6 {[%emt 0:00:10]} 4. Ba4 {[%emt 0:00:12]} Nf6 {[%emt 0:00:11]} 5. O-O {[%emt 0:00:08]} Be7 {[%emt 0:00:33]} 6. Re1 {[%emt 0:00:35]} b5 {[%emt 0:00:11]} 7. Bb3 {[%emt 0:00:06]} O-O {[%emt 0:00:08]} 8. c3 {[%emt 0:00:20]} d5 {[%emt 0:00:14]} 9. d4 {[%emt 0:01:59]} exd4 {[%emt 0:00:49] The position is equal.} 10. e5 {[%emt 0:02:47] C89: Closed Ruy Lopez: Marshall Attack.} Ne4 {[%emt 0:00:08]} 11. cxd4 {[%emt 0:00:27]} Bf5 {[%emt 0:01:40] The main line 11...Bf5 scores better than 11...Bg4.} 12. Nc3 {[%emt 0:06:31]} Nxc3 {[%emt 0:04:19]} 13. bxc3 {[%emt 0:00:06]} Na5 {[%emt 0:01:44] 13...Qd7 is vanishing.} 14. Bc2 {[%emt 0:05:05]} Bxc2 {[%emt 0:09:26]} 15. Qxc2 {[%emt 0:00:06]} Nc4 {[%emt 0:00:45]} 16. Bf4 {[%emt 0:09:35] [#]} Rc8 $146 {[%emt 0:06:36]} ({Predecessor:} 16... a5 17. Nd2 Qd7 18. Rad1 Na3 19. Qd3 Qg4 20. g3 Qg6 21. Qf3 b4 22. Rc1 Nb5 23. Qxd5 Nxc3 {1-0 (47) Mastrovasilis,D (2613)-Gharibyan,M (2487) Sharjah 2022}) 17. Nd2 {[%emt 0:03:47]} Nxd2 {[%emt 0:06:21]} (17... c5 {is interesting.} 18. dxc5 Bxc5 19. Rad1 Be7) 18. Qxd2 {[%emt 0:00:06]} c5 {[%emt 0:00:38]} 19. dxc5 {[%emt 0:09:52]} Bxc5 {[%emt 0:13:44]} 20. Rad1 {[%emt 0:04:30]} Qb6 {[%emt 0:02:20]} 21. Be3 {[%emt 0:01:03]} Rfd8 {[%emt 0:02:28]} 22. h3 {[%emt 0:05:03]} h6 {[%emt 0:03:25]} 23. Bxc5 {[%emt 0:01:18]} Rxc5 {[%emt 0:00:55]} 24. Re3 {[%emt 0:00:10]} Qc6 {[%emt 0:03:54]} 25. Rd3 {[%emt 0:03:31]} Rc8 {[%emt 0:03:11]} 26. Qf4 {[%emt 0:01:58]} Qe6 {[%emt 0:09:52]} 27. Qe3 {[%emt 0:02:06]} Qc6 {[%emt 0:01:05][%cal Rc5c3]} 28. Qf4 {[%emt 0:02:25]} Qe6 {[%emt 0:00:24]} 29. Qe3 {[%emt 0:00:13]} Qc6 {[%emt 0:00:06][%cal Rc5c3]} 30. Qf4 {[%emt 0:00:09]} Rb8 {An interesting draw.  Weighted Error Value: White=0.03 (flawless) /Black=0.05 (flawless)} 1/2-1/2

[Event "26th Womens ECCC 2022"]
[Site "Mayrhofen"]
[Date "2022.10.05"]
[Round "3.12"]
[White "Kejzar, Petra"]
[Black "Majdan, Joanna"]
[Result "0-1"]
[ECO "A22"]
[WhiteElo "2120"]
[BlackElo "2301"]
[Annotator "TA"]
[PlyCount "58"]
[EventDate "2022.10.03"]
[EventType "team-tourn"]
[EventCountry "AUT"]
[SourceTitle "playchess.com"]
[Source "ChessBase"]
[SourceQuality "1"]
[TimeControl "40/5400+30:1800+30"]

{[%evp 12,58,11,11,14,8,11,0,18,0,27,0,6,-67,-64,-57,-57,-72,8,0,16,22,33,59,183,71,81,0,-13,-235,-232,-318,-344,-341,-337,-333,-338,-339,-349,-449,-440,-667,-577,-915,-673,-681,-670,-1090,-1045]} 1. c4 {[%emt 0:00:02]} e5 {[%emt 0:00:06]} 2. Nc3 {[%emt 0:00:04]} Nf6 {[%emt 0:00:10]} 3. g3 {[%emt 0:00:52]} Bb4 {[%emt 0:00:33]} 4. Bg2 {[%emt 0:00:38]} O-O {[%emt 0:01:13]} 5. d3 {[%emt 0:00:56]} Bxc3+ {[%emt 0:05:18]} 6. bxc3 {[%emt 0:00:13]} Re8 {[%emt 0:00:06]} 7. e4 {[%emt 0:07:07]} d6 {[%emt 0:01:25] A21: English Opening: 1...e5 2 Nc3.} 8. Ne2 {[%emt 0:03:37]} Nbd7 {[%emt 0:04:28] [#]} 9. h3 $146 {[%emt 0:05:21]} ({Predecessor:} 9. O-O Nc5 10. h3 h6 11. Be3 b6 12. Bxc5 dxc5 13. f4 Qe7 14. Rb1 Bb7 15. a4 {1-0 (53) Holub,A (1754)-Cimbora,M Chess.com INT 2021}) 9... Nc5 {[%emt 0:05:04] The position is equal.} 10. g4 {[%emt 0:04:57]} Bd7 {[%emt 0:04:02][%cal Bc8d7,Bd7a4,Ba4c2][%mdl 32]} 11. Ng3 {[%emt 0:01:04]} Ba4 {[%emt 0:02:44]} 12. Qf3 {[%emt 0:00:38]} (12. Qe2 $11) 12... Bc2 $15 {[%emt 0:03:57]} 13. Bf1 {[%emt 0:00:49]} c6 {[%emt 0:14:55]} 14. Ba3 {[%emt 0:11:40]} Qa5 {[%emt 0:02:34] Black is more active.} ({Black should play} 14... Ne6 $17) 15. Bb4 $11 {[%emt 0:00:46]} Qa6 {[%emt 0:06:36] [#] ...Nb3 is the strong threat.} 16. Rc1 {[%emt 0:08:04]} Ba4 {[%emt 0:02:43]} (16... Qxa2 17. Bxc5 dxc5 18. Qe2 $16) 17. Nf5 {[%emt 0:04:04]} Red8 {[%emt 0:09:16]} (17... Ne6 $14) 18. Nh6+ {[%emt 0:11:41]} gxh6 $16 {[%emt 0:00:52][%cal Bg7h6,Bh6h5][%mdl 32]} 19. Qxf6 {[%emt 0:01:56]} ({White should try} 19. Bxc5 $16 Nd5 20. Be3 (20. exd5 dxc5 21. Qf6 Qb6 $11) 20... Nxe3 21. Qxe3) 19... Ne6 $11 {[%emt 0:00:34][%cal Bc5e6,Be6f4,Bf4d3][%mdl 32] With the idea ...c5.} 20. g5 $2 {[%emt 0:04:16] [#]} (20. Rh2 $11 {and White has nothing to worry.}) 20... h5 $1 $19 {[%emt 0:00:35] Threatens to win with ...c5.} ({Worse is} 20... hxg5 21. d4 c5 22. d5 $11) 21. Ra1 {[%emt 0:19:46]} ({Don't play} 21. Be2 c5 22. Bxh5 Be8) 21... c5 {[%emt 0:05:43]} 22. Ba3 {[%emt 0:00:13]} Qa5 {[%emt 0:02:05]} 23. Bb2 {[%emt 0:01:19]} b5 {[%emt 0:00:20]} 24. Be2 {[%emt 0:03:13]} Nf4 {[%emt 0:02:06]} 25. cxb5 {[%emt 0:03:53]} Bxb5 {[%emt 0:00:54] Black is clearly winning.} 26. g6 {[%emt 0:00:59]} (26. Kf1 $142) 26... hxg6 {[%emt 0:04:40]} 27. Rg1 {[%emt 0:01:23]} Bxd3 {[%emt 0:01:46]} 28. Bxd3 {[%emt 0:02:34]} Nxd3+ {[%emt 0:00:05]} 29. Kf1 {[%emt 0:00:09][%cal Og1g6]} Nf4 {[%emt 0:00:28] Weighted Error Value: White=0.98/Black=0.44} ({Inferior is} 29... Nxb2 30. Rxg6+ fxg6 31. Qxg6+ Kf8 32. Qf6+ Kg8 33. Qg6+ Kf8 34. Qf6+ Kg8 35. Qg6+ $11) 0-1

[Event "26th Womens ECCC 2022"]
[Site "Mayrhofen"]
[Date "2022.10.05"]
[Round "3.13"]
[White "Krasteva, Beloslava"]
[Black "Salimova, Nurgyul"]
[Result "1-0"]
[ECO "E48"]
[WhiteElo "2287"]
[BlackElo "2415"]
[Annotator "TA"]
[PlyCount "87"]
[EventDate "2022.10.03"]
[EventType "team-tourn"]
[EventCountry "AUT"]
[SourceTitle "playchess.com"]
[Source "ChessBase"]
[SourceQuality "1"]
[TimeControl "40/5400+30:1800+30"]

{[%evp 15,87,0,0,-2,0,-23,1,0,1,3,14,8,8,2,4,6,0,1,15,13,25,21,35,7,14,0,7,13,72,58,62,62,62,67,61,58,72,65,66,64,58,55,239,224,333,319,356,350,354,348,497,493,505,500,492,493,648,640,877,826,990,990,989,988,810,960,5716,1749,1212,952,5724,1087,745,660]} 1. d4 {[%emt 0:00:06]} Nf6 {[%emt 0:00:08]} 2. c4 {[%emt 0:00:14]} e6 {[%emt 0:00:16]} 3. Nc3 {[%emt 0:00:17]} Bb4 {[%emt 0:00:25]} 4. e3 {[%emt 0:00:34]} O-O {[%emt 0:01:07]} 5. Bd3 {[%emt 0:00:35]} d5 {[%emt 0:02:04]} 6. cxd5 {[%emt 0:00:17]} exd5 {[%emt 0:00:45]} 7. Nge2 {[%emt 0:03:37]} Re8 {[%emt 0:05:14]} 8. O-O {[%emt 0:00:29]} Bd6 {[%emt 0:04:29]} 9. Bd2 {[%emt 0:00:40] E48: Nimzo-Indian: Rubinstein: 5 Bd3 d5 including 6 Ne2, but excluding 6 a3.} a6 {[%emt 0:03:16]} 10. Qc2 {[%emt 0:01:38]} b5 {[%emt 0:14:38] [#]} 11. Nf4 $146 {[%emt 0:05:20] The position is equal.} ({Predecessor:} 11. f3 Bb7 12. e4 dxe4 13. fxe4 b4 14. e5 bxc3 15. Nxc3 Nbd7 16. Bg5 Be7 17. exf6 Nxf6 {½-½ (53) Aleksandrov,A (2565)-Fawzy,A (2418) Khanty-Mansiysk 2017}) 11... Bb7 {[%emt 0:02:52]} 12. a3 Nbd7 {[%emt 0:01:15][%cal Bb8d7,Bd7c5,Bc5e6][%mdl 32]} 13. Nce2 {[%emt 0:14:18]} c5 {[%emt 0:06:15]} 14. dxc5 {[%emt 0:02:16]} Nxc5 {[%emt 0:00:12][%cal Od5d4]} 15. Bb4 {[%emt 0:07:50]} Rc8 {[%emt 0:11:54][%cal Od5d4]} 16. Bf5 {[%emt 0:02:31]} Ne6 {[%emt 0:00:45]} 17. Qd2 {[%emt 0:01:46]} Rc4 {[%emt 0:07:03]} 18. Bxd6 {[%emt 0:03:03]} Qxd6 {[%emt 0:00:11]} 19. Rfd1 {[%emt 0:07:13]} Nxf4 {[%emt 0:07:52]} 20. Nxf4 {[%emt 0:01:01][%cal Be2f4,Bf4d3,Bd3b4,Bb4a6,Ba6c5][%mdl 32]} d4 {[%emt 0:00:19]} 21. Bd3 {[%emt 0:07:06]} Rc5 {[%emt 0:01:22]} (21... Rc7 $11 {keeps the balance.}) 22. Bf1 {[%emt 0:06:03]} (22. a4 {is interesting.} Rg5 23. Bf1 Ng4 24. axb5 axb5 25. Qxd4 Rd5 26. Qxd5 Bxd5 27. Rxd5 Qf6 28. Rxb5 Qh4 29. Nh3) 22... g5 {[%emt 0:03:55]} 23. Qxd4 {[%emt 0:03:37]} Qxd4 {[%emt 0:02:44]} 24. exd4 {[%emt 0:00:05]} Rc2 {[%emt 0:01:26]} 25. Nd3 {[%emt 0:00:05]} Be4 {[%emt 0:01:58]} 26. Nb4 {[%emt 0:07:13]} Rxb2 {[%emt 0:00:44]} 27. Nxa6 {[%emt 0:00:06]} Nd5 {[%emt 0:08:54] Prevents Nb4.} 28. Re1 {[%emt 0:04:51] Hoping for f3.} f6 $2 {[%emt 0:04:45] [#] Black cannot hold the game after this.} ({Better is} 28... Kf8 $1 $14) 29. a4 $1 $18 {[%emt 0:06:18]} bxa4 {[%emt 0:03:36]} (29... Bg6 $142) 30. Bc4 {[%emt 0:00:06]} Rc8 {[%emt 0:01:07] [#]} 31. Nc5 $1 {[%emt 0:01:56]} ({Not} 31. Rxa4 Kh8 $16) 31... Rc2 {[%emt 0:03:05]} 32. Ba2 {[%emt 0:01:18]} ({Stronger than} 32. Rxe4 Rxc4 33. f3 Ra8 $17) 32... f5 {[%emt 0:00:54]} (32... Rxa2 $142 33. Rxa2 Bf5 34. Rxa4 Kg7) 33. Nxe4 {[%emt 0:01:03] White is clearly winning.} Rxa2 {[%emt 0:00:09]} 34. Rxa2 {[%emt 0:00:10]} fxe4 {[%emt 0:00:04]} 35. Rxa4 {[%emt 0:00:47][%mdl 4096] Endgame KRR-KRN} Nf4 {[%emt 0:00:17]} 36. g3 {[%emt 0:02:04]} Nh3+ {[%emt 0:00:08]} 37. Kg2 {[%emt 0:00:21]} g4 {[%emt 0:00:04]} 38. Rxe4 {[%emt 0:00:09]} h5 {[%emt 0:00:04]} 39. Re7 {[%emt 0:00:29] Threatens to win with d5.} Rf8 {[%emt 0:02:05]} 40. Ra2 {[%emt 0:00:29] d5 is the strong threat.} Rc8 {[%emt 0:00:35]} 41. d5 {[%emt 0:31:32][%cal Bd4d5,Bd5d6,Bd6d7][%mdl 32] White wants to mate with d6.} Kf8 {[%emt 0:30:06]} 42. Rb7 {[%emt 0:00:30]} Rd8 {[%emt 0:00:23]} 43. d6 {[%emt 0:01:05] Threatening mate with f4.} Ng5 {[%emt 0:00:24]} 44. d7 {[%emt 0:01:47] Weighted Error Value: White=0.04 (flawless) /Black=0.37} 1-0

[Event "26th Womens ECCC 2022"]
[Site "Mayrhofen"]
[Date "2022.10.05"]
[Round "3.14"]
[White "Roebers, Eline"]
[Black "Radeva, Viktoria"]
[Result "1-0"]
[ECO "C02"]
[WhiteElo "2352"]
[BlackElo "2263"]
[Annotator "TA"]
[PlyCount "65"]
[EventDate "2022.10.03"]
[EventType "team-tourn"]
[EventCountry "AUT"]
[SourceTitle "playchess.com"]
[Source "ChessBase"]
[SourceQuality "1"]
[TimeControl "40/5400+30:1800+30"]

{[%evp 13,65,20,17,44,47,37,57,22,47,0,0,0,0,0,0,0,1,0,0,-12,7,2,2,0,0,-56,0,-41,0,0,0,0,0,0,0,0,0,-104,125,149,448,369,360,342,1777,1875,29990,29991,29991,29992,29994,29995,29995,29996]} 1. e4 {[%emt 0:00:03]} e6 {[%emt 0:00:12]} 2. d4 {[%emt 0:00:04]} d5 {[%emt 0:00:04]} 3. e5 {[%emt 0:00:12]} c5 {[%emt 0:00:06]} 4. c3 {[%emt 0:00:03]} Qb6 {[%emt 0:00:11]} 5. Nf3 {[%emt 0:00:09]} Bd7 {[%emt 0:00:12]} 6. Be2 {[%emt 0:00:33]} Bb5 {[%emt 0:01:40] 6...cxd4 is more advanced technology.} 7. dxc5 {[%emt 0:02:07]} Bxc5 {[%emt 0:01:08]} 8. b4 {[%emt 0:01:07] C02: French: Advance Variation.} Bxe2 {[%emt 0:15:18]} 9. Qxe2 {[%emt 0:00:33]} Be7 {[%emt 0:00:51]} 10. a4 {[%emt 0:06:20] White is slightly better.} a5 {[%emt 0:18:15]} 11. b5 {[%emt 0:05:51]} (11. Be3 $14 Qc7 12. bxa5 (12. Qb5+ Nd7 $15)) 11... Nd7 $11 {[%emt 0:01:15]} 12. O-O {[%emt 0:01:27] [#]} Rc8 $146 {[%emt 0:03:32] Inhibits c4.} ({Predecessor:} 12... f6 13. Be3 Bc5 14. Bxc5 Nxc5 15. Nbd2 Ne7 16. c4 O-O 17. cxd5 exd5 18. Rfe1 Ng6 {0-1 (29) Krotiuk,D-Katyshkina,A (1799) Dagomys 2009}) 13. Bb2 {[%emt 0:04:36]} Bc5 {[%emt 0:07:37]} 14. Nbd2 {[%emt 0:07:28]} Ne7 {[%emt 0:00:28]} 15. c4 {[%emt 0:00:45]} O-O {[%emt 0:01:40]} 16. Rac1 {[%emt 0:04:59]} Rfe8 {[%emt 0:06:22]} 17. Nb3 {[%emt 0:01:21]} dxc4 {[%emt 0:09:22]} 18. Rxc4 {[%emt 0:01:39]} Bb4 {[%emt 0:01:06]} 19. Rg4 {[%emt 0:09:16]} (19. Nfd2 $11) 19... Nc5 {[%emt 0:04:04]} (19... Qc7 $15) 20. Nbd2 {[%emt 0:08:51]} Nxa4 {[%emt 0:10:31]} 21. Ne4 {[%emt 0:01:35] aiming for Nf6+.} Ng6 {[%emt 0:00:30]} 22. Bd4 {[%emt 0:02:24]} Qc7 {[%emt 0:03:04]} 23. h4 {[%emt 0:01:09]} h5 {[%emt 0:01:16]} 24. Rg3 {[%emt 0:01:57] Strongly threatening Nfg5.} Qc2 {[%emt 0:03:33]} (24... Red8 $11) 25. Qe3 $1 $17 {[%emt 0:00:08]} Nb2 $2 {[%emt 0:01:42] [#]} (25... Red8 $17 {...Rc4 is the strong threat.} 26. Nfg5 Qc4) 26. Nfg5 $1 $16 {[%emt 0:02:46]} Nxh4 {[%emt 0:06:49][%mdl 8192] This costs Black the game.} (26... Nd3 $16) 27. Nf6+ {[%emt 0:15:37]} gxf6 {[%emt 0:00:32]} 28. Ne4+ {[%emt 0:00:18]} Ng6 $2 {[%emt 0:00:32]} (28... Kf8 29. Qh6+ Ke7 30. Qxf6+ Kd7 31. Qxh4 Rf8) 29. exf6 $18 {[%emt 0:00:24][%cal Oe3h6] White threatens Qh6! and mate.} Bf8 {[%emt 0:01:23] [#] Against Qh6} 30. Rxg6+ $1 {[%emt 0:00:19][%mdl 512] White mates.} fxg6 {[%emt 0:00:06]} 31. f7+ $1 {[%emt 0:00:07][%mdl 64] Decoy} Kxf7 {[%emt 0:00:26]} 32. Ng5+ {[%emt 0:01:23]} Kg8 {[%emt 0:01:36]} 33. Qe5 {[%emt 0:00:10] Weighted Error Value: White=0.13 (very precise) /Black=0.53} 1-0